Workbook

Sheet Worksheet
B1: 2023 E1 INTERIM PAYROLL WORKSHEET Rev 3/2/23 | J1: ADDITIONAL ACCOUNTS
B2: Employee name | G2: Date | J2: Account Number | M2: Pay Type | N2: Hours | O2: Rate | P2: Lump Sum
B3: Address book # | F3: (M)onthly / (B)i-weekly | H3: B | P3: =IFERROR(IF(M3<>70,N3*O3,N3*O3*1.5),0) -> 0
B4: Retirement percentage | D4: =IF(D10="S",4.8%,IF(D10="J1",9%,IF(D10="J2",7%,IF(D10="J3",5%,IF(D10="J4",1%,IF(D10="J5",10%,IF(D10="P",16%,IF(D10="T",9.78%,"ERROR")))))))) -> 0.048 | F4: Old / New W-4 | H4: New | P4: 0 | S4: Fill(ed) out
B5: Match percentage | D5: =IF(D10="S",156%,IF(D10="J1",0%,IF(D10="J2",0%,IF(D10="J3",0%,IF(D10="J4",0%,IF(D10="J5",0%,IF(D10="P",100%,IF(D10="T",101%,"ERROR")))))))) -> 1.56 | F5: =IF(H4="Old","(M)arried / (S)ingle","STATE (M)arried / (S)ingle)") -> STATE (M)arried / (S)ingle) | H5: S | P5: 0 | S5: Required to be filled out
B6: =IF(H4="New","W4 Multiple Job Flag","DO NOT USE") -> W4 Multiple Job Flag | D6: N | G6: =IF(H4="New","(A)Married/(J)Single/(H) HOH","DO NOT USE") -> (A)Married/(J)Single/(H) HOH | H6: J | P6: 0 | S6: Static or calculated value
B7: =IF(H4="New","W4 Dependent Credit","DO NOT USE") -> W4 Dependent Credit | D7: 0 | F7: =IF(H4="Old","Exemptions","State Exemptions") -> State Exemptions | P7: 0
B8: =IF(H4="New","W4 Other Income","DO NOT USE") -> W4 Other Income | D8: 0 | F8: =IF(H4="New","W4 Other Deductions","DO NOT USE") -> W4 Other Deductions | H8: 0 | P8: 0
B9: Retirement (yes or no) | D9: Yes | F9: Over 55 / Use sick payout? | H9: No / No | P9: 0
B10: S=State, T=Teacher, P=Patrol Judges : J1=9%, J2=7%, J3=5%, J4=1%, J5=10% | D10: S | F10: Take additional FIT/SIT? | H10: No | P10: 0
F11: Additional FIT | H11: 0 | P11: 0
B12: Gross Pay | D12: =SUM(H15:H24)+SUM(P3:P35) -> 0 | F12: Additional SIT | H12: 0 | P12: 0
P13: 0
B14: Account Number | E14: Pay Type | F14: Hours | G14: Rate | H14: Lump Sum | P14: 0
D15: Regular | E15: 1 | H15: =IFERROR(IF(E15<>70,F15*G15,F15*G15*1.5),0) -> 0 | P15: 0
D16: Reg Adjust | E16: 2 | G16: =IF(B16<>"",G$15,) -> 0 | H16: =IFERROR(IF(E16<>70,F16*G16,F16*G16*1.5),0) -> 0 | P16: 0
D17: Vacation | E17: 30 | G17: 0 | H17: 0 | P17: 0
D18: Sick | E18: 40 | G18: 0 | H18: 0 | P18: 0
D19: Holiday | E19: 240 | G19: 0 | H19: =IFERROR(IF(E19<>70,F19*G19,F19*G19*1.5),0) -> 0 | P19: 0
D20: Vac Payout | E20: 330 | G20: 0 | H20: =IFERROR(IF(E20<>70,F20*G20,F20*G20*1.5),0) -> 0 | P20: 0
D21: Sick Payout | E21: 320 | F21: =IF(RIGHT(H9,3)="Yes",IF(H50*0.25>Data!B9,Data!B9,H50*0.25),"Not applicable") -> Not applicable | G21: 0 | H21: =IFERROR(IF(E21<>70,F21*G21,F21*G21*1.5),0) -> 0 | P21: 0
D22: Sick write-off | E22: 892 | F22: =IF(RIGHT(H9,3)="Yes",H50*0.75,0) -> 0 | G22: 0 | H22: 0.01 | P22: 0
D23: Sick write-off | E23: 892 | F23: 0 | G23: 0 | H23: -0.01 | P23: 0
D24: Comp Payout | E24: 340 | G24: =IF(B24<>"",G$15,) -> 0 | H24: =IFERROR(IF(E24<>70,F24*G24,F24*G24*1.5),0) -> 0 | P24: 0
B25: Employee DBA | D25: Amount | E25: Detailed Reason for Interim: | P25: 0
B26: Pre-tax | P26: 0
B27: (DBA#) | C27: Retirement | D27: =IF(D9="Yes",ROUND(D12*D4,2),0) -> 0 | P27: 0
B28: (DBA#) | C28: Medical | P28: 0
B29: (DBA#) | C29: Dental | P29: 0
B30: (DBA#) | C30: Vision | P30: 0
B31: (DBA#) | C31: Dependent Care | P31: 0
B32: (DBA#) | C32: Def. Comp | P32: 0
B33: (DBA#) | C33: Med Reimb | P33: 0
B34: (DBA#) | C34: HSA | P34: 0
B35: (DBA#) | C35: Parking / Bus Pass | E35: Date Interim Should Be Paid: | P35: 0
B36: (DBA#) | C36: Other
B37: Post-tax | E37: Please fill out the full form - once done click the button below to email a copy of this form to State Accounting. | J37: SCREENSHOT AREA
B38: (DBA#) | C38: Child Support
B39: (DBA#) | C39: Dependent Life
B40: (DBA#) | C40: AD&D
B41: (DBA#) | C41: STD
B42: (DBA#) | C42: LTD
B43: (DBA#) | C43: Optional Life
B44: (DBA#) | C44: Other
B45: (DBA#) | C45: Other
B46: Employer DBA | D46: Amount | E46: Vacation Hours | G46: Sick Hours
B47: (DBA#) | C47: Retirement match | D47: =ROUND(D27*D5,2) -> 0 | E47: Begin Bal | G47: Begin Bal
C48: Medical | E48: Used vac | F48: =SUM(SUMIF(E15:E22,ptVacation,F15:F22), SUMIF(M3:M35,ptVacation,N3:N35)) -> 0 | G48: Used sick | H48: =SUM(SUMIF(E15:E22,ptSick,F15:F22), SUMIF(M3:M35,ptSick,N3:N35)) -> 0
E49: Earned vac | F49: =D52 -> 0 | G49: Earned sick | H49: =D54 -> 0
E50: Total | F50: =F47-F48+F49 -> 0 | G50: Total | H50: =H47-H48+H49 -> 0
B51: Vacation, Sick, and Comp Earned | G51: Employee sick payout type:
B52: (DBA#) | C52: Vacation | E52: Comp Hours
B53: 8600 | C53: Vacation | D53: =D52 -> 0 | E53: Begin Bal
B54: (DBA#) | C54: Sick | E54: Comp Used | F54: =SUM(SUMIF(E15:E24,ptCompUsed,F15:F24), SUMIF(M3:M35,ptCompUsed,N3:N35)) -> 0
B55: 8601 | C55: Sick | D55: =D54 -> 0 | E55: Comp Earned | F55: =D60 -> 0
B56: 8747 | C56: Comp Earn @ 0.5 | D56: =SUMIF($M$3:$M$35,87,$N$3:$N$35) -> 0 | E56: Total | F56: =F53-F54+F55 -> 0
B57: 8750 | C57: Comp Earn @ 1.0 | D57: =SUMIF($M$3:$M$35,90,$N$3:$N$35) -> 0 | E57: Authorization:
B58: 8751 | C58: Comp Earn @ 1.5 | D58: =SUMIF($M$3:$M$35,91,$N$3:$N$35) -> 0
B59: 8752 | C59: Comp Earn @ 2.0 | D59: =SUMIF($M$3:$M$35,92,$N$3:$N$35) -> 0
B60: 8753 | C60: Comp Earned | D60: =(D56*0.5)+D57+(D58*1.5)+(D59*2) -> 0
B62: Agency # | E62: Agency Name
B64: Agency Contact | E64: Phone #
B65: Revised 3/2/2023

Sheet Old W4 Calculation
B1: 2023 Payroll Calculation for 2023 - Rev 3/2/23 | O1: Tax Tables | Q1: DOCUMENTATION | W1: Retirement Percentage
B2: Employee Name | C2: =Worksheet!D2 -> 0 | N2: Federal | O2: Annual | P2: Single | W2: Code | X2: Percent
B3: Address Book # | C3: =Worksheet!D3 -> 0 | N3: 0 | O3: 0 | P3: 0 | Q3: CELL ADDRESS | R3: EXPLANATION | W3: J1 | X3: 0.09
I4: m | N4: 5250 | O4: 0 | P4: 0.1 | W4: J2 | X4: 0.07
B5: Exemptions | C5: =Worksheet!H7 -> 0 | F5: Gross Wages | G5: =(C11*C12)+((C13*1.5)*C11) -> 0 | I5: =IF((C7=I4),2,0) -> 0 | N5: 16250 | O5: 1100 | P5: 0.12 | Q5: A5 thru B15 | R5: Basic information is entered in column B as directed in | W5: J3 | X5: 0.05
B6: Pay Cycle | F6: Federal Taxable Wages | G6: =G5-G13-G14-G16 -> 0 | I6: m | N6: 49975 | O6: 5147 | P6: 0.22 | R6: column A. This information is used to perform the needed | W6: J4 | X6: 0.01
B7: B = Bi-weekly, M = Monthly | C7: =Worksheet!H3 -> B | F7: FICA Wages | G7: =G5-G16 -> 0 | I7: =IF((C9=I6),1,0) -> 0 | N7: 100625 | O7: 16290 | P7: 0.24 | R7: computations. | W7: J5 | X7: 0.1
B8: Marital Status | F8: Retirement Wages | G8: =G5 -> 0 | I8: =I7 -> 0 | J8: =CHOOSE($I$8+1,N3,N15) -> 0 | K8: =CHOOSE($I$8+1,N3,N15) -> 0 | L8: =CHOOSE($I$8+1,O3,O15) -> 0 | M8: =CHOOSE($I$8+1,P3,P15) -> 0 | N8: 187350 | O8: 37104 | P8: 0.32 | W8: P | X8: 0.16
B9: S = Single, M = Married | C9: =Worksheet!H5 -> S | F9: FIT | G9: =ROUND((((((I10-VLOOKUP(I10,J8:M17,2)))*VLOOKUP(I10,J8:M17,4))+VLOOKUP(I10,J8:M17,3))/I15)+C14,2) -> 0 | I9: =O83/I15 -> 165.3846154 | J9: =CHOOSE($I$8+1,N4,N16) -> 5250 | K9: =CHOOSE($I$8+1,N4,N16) -> 5250 | L9: =CHOOSE($I$8+1,O4,O16) -> 0 | M9: =CHOOSE($I$8+1,P4,P16) -> 0.1 | N9: 236500 | O9: 52832 | P9: 0.35 | Q9: C7 thru F8 | R9: Retirement information is entered in columns D and F as | W9: S | X9: 0.048
B10: Gross Wages | F10: SIT | G10: =ROUND((((((I45-VLOOKUP(I45,J40:M48,2)))*VLOOKUP(I45,J40:M48,4))+VLOOKUP(I45,J40:M48,3))/I47)+C15,2) -> 0 | I10: =IF(I14<0,0,I16) -> 0 | J10: 16250 | K10: 16250 | L10: 1100 | M10: 0.12 | N10: 583375 | O10: 174238.25 | P10: 0.37 | R10: directed in columns C and E. This identifies the amount | W10: T | X10: 0.0978
B11: Rate per hour or total amount | C11: =Worksheet!D12 -> 0 | F11: Federal Soc Sec | G11: =ROUND(G$7*6.2/100,2) -> 0 | I11: y | J11: 49975 | K11: 49975 | L11: 5147 | M11: 0.22 | N11: 9999999999 | O11: 9999999999 | P11: 1 | R11: of wages which is not subject to taxes.
B12: Number of hours or 1 for total above | C12: 1 | F12: Federal Medicare | G12: =ROUND(G$7*1.45/100,2) -> 0 | I12: =IF(C17=I11,G13,0) -> 0 | J12: 100625 | K12: 100625 | L12: 16290 | M12: 0.24 | N12: 9999999999 | O12: 9999999999 | P12: 1
B13: OT Hours or 0 if amount in total above | C13: 0 | F13: Retirement | G13: =IF(C17="Y",ROUND(G5*C20,2),0) -> 0 | J13: 187350 | K13: 187350 | L13: 37104 | M13: 0.32 | Q13: G4 thru G8 | R13: These cells compare entries for pay cycle and marital | W13: State Percentages
B14: Additional FIT | C14: =Worksheet!H11 -> 0 | F14: DCP | G14: =C21 -> 0 | I14: =G5-(I9*C5)-I12-G16-G14 -> 0 | J14: 236500 | K14: 236500 | L14: 52832 | M14: 0.35 | N14: Federal | O14: Annual | P14: Married | Q14: and | R14: status to constants. Based on the comparisons, different | W14: Code | X14: Percent | AA14: 185
B15: Additional SIT | C15: =Worksheet!H12 -> 0 | F15: Post-Tax Deductions | G15: =SUM(C33:C40) -> 0 | I15: =IF(C$7="b",26,IF(C$7="M",12,1)) -> 26 | J15: 583375 | K15: 583375 | L15: 174238.25 | M15: 0.37 | N15: 0 | O15: 0 | P15: 0 | Q15: G39 thru G45 | R15: values are placed in cell G8. This value is used as | W15: J1 | X15: 0 | AA15: 90
B16: Retirement | F16: Pre-Tax Deductions | G16: =SUM(C24:C31) -> 0 | I16: =I14*I15 -> 0 | J16: 9999999999 | K16: 9999999999 | L16: 9999999999 | M16: 1 | N16: 14800 | O16: 0 | P16: 0.1 | R16: explained in the next group. | W16: J2 | X16: 0
B17: (Y or N) | C17: =IF(rRetirement="Yes","Y","N") -> Y | F17: Net Take Home Pay | G17: =G5-SUM(G9:G16) -> 0 | J17: 9999999999 | K17: 9999999999 | L17: 9999999999 | M17: 1 | N17: 36800 | O17: 2200 | P17: 0.12 | W17: J3 | X17: 0
B18: S=State, T=Teacher, J=Judge, P=Patrol | J18: Minimum Wages Subject | N18: 104250 | O18: 10294 | P18: 0.22 | Q18: H8 thru K16 | R18: These cells use the value in G8 to select the correct | W18: J4 | X18: 0
B19: Judges, J1=9%,J2=7%,J3=5%,J4=1%,J5=10% | C19: =Worksheet!D10 -> S | F19: State Contribution | J19: Biweekly | K19: 435 | L19: Revised 8/24/09 | N19: 205550 | O19: 32580 | P19: 0.24 | Q19: and | R19: value from the four tables listed in L1 thru N37. | W19: J5 | X19: 0
B20: % Withheld | C20: =IF(C19="S",4.8%,IF(C19="J1",9%,IF(C19="J2",7%,IF(C19="J3",5%,IF(C19="J4",1%,IF(C19="J5",10%,IF(C19="P",16%,IF(C19="T",9.78%,"ERROR")))))))) -> 0.048 | F20: Federal Soc Sec | G20: =ROUND(G$7*6.2/100,2) -> 0 | J20: Monthly | K20: 942.5 | L20: Revised 8/24/09 | N20: 379000 | O20: 74208 | P20: 0.32 | Q20: H40 thru k45 | W20: P | X20: 1
B21: Deferred Comp $ Withheld | C21: =Worksheet!D32 -> 0 | F21: Federal Medicare | G21: =ROUND(G$7*1.45/100,2) -> 0 | N21: 477300 | O21: 105664 | P21: 0.35 | Q21: G9 and G44 | R21: This cell compares the pay cycle value to a standard to | W21: S | X21: 1.56
B22: Deductions | F22: State Portion Retirement | G22: =+ROUND(G13*VLOOKUP(C19,W15:X22,2,0),2) -> 0 | J22: Wage Range | N22: 708550 | O22: 186601.5 | P22: 0.37 | R22: determine the proper amount to allow for each exemption. | W22: T | X22: 1.01
B23: Pre-Tax | E23: NOTES | H23: 788.97 | J23: Biweekly | K23: 580 | L23: Revised 8/24/09 | N23: 9999999999 | O23: 9999999999 | P23: 1
B24: Health | C24: =Worksheet!D28 -> 0 | J24: Monthly | K24: 1256.66 | L24: Revised 8/24/09 | N24: 9999999999 | O24: 9999999999 | P24: 1 | Q24: G10 and G45 | R24: This cell computes taxable wages by taking total gross
B25: Dental | C25: =Worksheet!D29 -> 0 | H25: =IF(G24-K19<=0,0,G24) -> 0 | R25: less tax-sheltered retirement less the withholding amount
B26: Vision | C26: =Worksheet!D30 -> 0 | H26: =IF(G24-K23>=0,0.25*G24,H25-K19) -> -435 | I26: =IF(H25<ABS(H26),H25,H26) -> 0 | R26: times the number of exemptions.
B27: Dependent Care | C27: =Worksheet!D31 -> 0 | H27: =IF(G24-K23>=0,0.15*G24,H25-K19) -> -435
B28: Medical Reimbursment | C28: =Worksheet!D33 -> 0 | H28: =IF(G24-K23>=0,H25-K19,0.15*G24) -> 0 | I28: =MIN(H25,H28,ABS(H27)) -> 0 | Q28: G11 thru G12 | R28: These cells determine if the retirement is tax sheltered
B29: Health Savings Account | C29: =Worksheet!D34 -> 0 | R29: and then determines the amount for use in cell G10 & G45.
B30: Parking / Bus Pass | C30: =Worksheet!D35 -> 0 | H30: =IF(G24-K20<=0,0,G24) -> 0
B31: Other | C31: =Worksheet!D36 -> 0 | H31: =IF(G24-K24>=0,0.25*G24,H30-K20) -> -942.5 | I31: =IF(H30<ABS(H31),H30,H31) -> 0 | Q31: E11 | R31: Comutes total gross by multiplying the values enter in
B32: Post-Tax | H32: =IF(G24-K24>=0,0.15*G24,H30-K20) -> -942.5 | R32: column B.
B33: Child Support | C33: =Worksheet!D38 -> 0 | H33: =IF(G24-K24>=0,H30-K20,0.15*G24) -> 0 | I33: =MIN(ABS(H32),H33,H30) -> 0
B34: Dependent Life | C34: =Worksheet!D39 -> 0 | Q34: E14 | R34: Computes federal tax withholding by using the table
B35: AD&D | C35: =Worksheet!D40 -> 0 | R35: in cells H8 thru K16 and vlookup to identify the proper
B36: STD | C36: =Worksheet!D41 -> 0 | R36: values to use in the formula.
B37: LTD | C37: =Worksheet!D42 -> 0 | W37: Protect the sheet when done.
B38: Optional Life | C38: =Worksheet!D43 -> 0 | Q38: E15 | R38: Computes state income tax withholding using cells H40 thru K45.
B39: Other | C39: =Worksheet!D44 -> 0 | I39: m | N39: State | O39: Annual | P39: Single
B40: Other | C40: =Worksheet!D45 -> 0 | E40: Revised 3/2/23 | I40: =IF((C7=I39),2,0) -> 0 | J40: =CHOOSE($I$43+1,N40,N50,N60,N70) -> 0 | K40: =CHOOSE($I$43+1,N40,N50,N60,N70) -> 0 | L40: 0 | M40: 0 | N40: 0 | O40: 0 | P40: 0 | Q40: E16 | R40: Computes social security using the standard percentage.
I41: m | J41: =CHOOSE($I$43+1,N41,N51,N61,N71) -> 3060 | K41: =CHOOSE($I$43+1,N41,N51,N61,N71) -> 3060 | L41: =CHOOSE($I$43+1,O41,O51,O61,O71) -> 0 | M41: =CHOOSE($I$43+1,P41,P51,P61,P71) -> 0.0226 | N41: 3060 | O41: 0 | P41: 0.0226
I42: =IF((C9=I41),1,0) -> 0 | J42: 5990 | K42: 5990 | L42: 66.22 | M42: 0.0322 | N42: 5990 | O42: 66.22 | P42: 0.0322 | Q42: E17 | R42: Computes retirement by multiplying the gross by the
I43: =I42 -> 0 | J43: 19470 | K43: 19470 | L43: 500.28 | M43: 0.0491 | N43: 19470 | O43: 500.28 | P43: 0.0491 | R43: percentage entered and adding the fixed amount.
I44: =O86/I47 -> 82.30769231 | J44: 28210 | K44: 28210 | L44: 929.41 | M44: 0.062 | N44: 28210 | O44: 929.41 | P44: 0.062
I45: =IF(I46<0,0,I48) -> 0 | J45: 35820 | K45: 35820 | L45: 1401.23 | M45: 0.0639 | N45: 35820 | O45: 1401.23 | P45: 0.0639 | Q45: G23 thru H31 | R45: Computes the proper amount to hold for garnishment.
I46: =G5-(I44*C5)-I12-G16-G14 -> 0 | J46: 67270 | K46: 67270 | L46: 3410.89 | M46: 0.0675 | N46: 67270 | O46: 3410.89 | P46: 0.0675 | R46: G23-H26 is for biweekly and G28-H31 is for monthly.
I47: =IF(C$7="b",26,IF(C$7="m",12,1)) -> 26 | J47: 999999999 | K47: 999999999 | L47: 999999999 | M47: 1 | N47: 999999999 | O47: 999999999 | P47: 1 | Q47: G23 G28 | R47: Compares disposable income to protected amount for the
I48: =I46*I47 -> 0 | J48: 999999999 | K48: 999999999 | L48: 999999999 | M48: 1 | N48: 999999999 | O48: 999999999 | P48: 1 | R48: pay period to see if any can be held.
N49: State | O49: Annual | P49: Married | Q49: G24 G29 | R49: Determines if 25% or amount exceeding protected amount
N50: 0 | O50: 0 | P50: 0 | R50: should be held.
N51: 7530 | O51: 0 | P51: 0.0226 | Q51: H24 H29 | R51: Selects the lessor of the above two amounts. Non head of
N52: 11610 | O52: 92.91 | P52: 0.0322 | R52: household amount.
N53: 28910 | O53: 649.27 | P53: 0.0491 | Q53: G25 G30 | R53: Determines if 15% or amount exceeding protected amount
N54: 44980 | O54: 1438.31 | P54: 0.062 | R54: should be held.
N55: 55810 | O55: 2109.77 | P55: 0.0639 | Q55: G26 G31 | R55: Determines if amount exceeding protected amount or 15%
N56: 74010 | O56: 3272.75 | P56: 0.0675 | R56: should be held.
N57: 999999999 | O57: 999999999 | P57: 1 | Q57: H26 H31 | R57: Select the lessor of the above two amounts and the G23/G28
N58: 999999999 | O58: 999999999 | P58: 1 | R58: amount. Head of household amount.
R59: The G25-G26/G30-G31 comparisons are necessary as the
R60: Disposable Income approaches the break point, the 15%
R61: computaion will become lower than the difference which is
R62: based on 25%.
Q64: E33 | R64: Selects the proper 15% amount depending upon the pay cycle.
Q66: E35 | R66: Selects the proper 25% amount depending upon the pay cycle.
Q68: H9 | R68: Uses values from B7 to determine the proper federal withholding
R69: allowance amount obtained from cells N84 and N85.
Q71: H44 | R71: Uses values from B7 to determine the proper state withholding
R72: allowance amount obtained from cells N87 and N88.
N81: Withholding | O81: Allowance
N83: Federal Annual | O83: 4300
N84: Federal Monthly
N86: State Annual | O86: 2140
N87: State Monthly

Sheet New W4 Calculation
B1: 2023 Payroll Calculation for 2023 - Rev 3/2/23 | Q1: DOCUMENTATION | W1: Retirement Percentage
B2: Employee Name | C2: =Worksheet!D2 -> 0 | W2: Code | X2: Percent
B3: Address Book # | C3: =Worksheet!D3 -> 0 | Q3: CELL ADDRESS | R3: EXPLANATION | W3: J1 | X3: 0.09
W4: J2 | X4: 0.07
B5: State Exemptions | C5: =Worksheet!H7 -> 0 | F5: Gross Wages | G5: =(C16*C17)+((C18*1.5)*C16) -> 0 | I5: m | Q5: A5 thru B15 | R5: Basic information is entered in column B as directed in | W5: J3 | X5: 0.05 | AC5: Tax Tables
B6: Multiple Job Flag (W-4 Step 2(c)) | C6: =Worksheet!D6 -> N | F6: Federal Taxable Wages | G6: =G5-G13-G14-G16 -> 0 | I6: =IF((C11=I5),2,0) -> 0 | O6: Tax Tables | AB6: Federal | AC6: Annual | AD6: Single
B7: Dependent credit - W4 line 3 | C7: =Worksheet!D7 -> 0 | F7: FICA Wages | G7: =G5-G16 -> 0 | N7: Federal | O7: Annual | P7: Single | AB7: 0 | AC7: 0 | AD7: 0
B8: Other Income - W4 line 4a | C8: =Worksheet!D8 -> 0 | F8: Retirement Wages | G8: =G5 -> 0 | I8: j | N8: 0 | O8: 0 | P8: 0 | AB8: 5250 | AC8: 0 | AD8: 0.1
B9: Other Deductions - W4 line 4b | C9: =Worksheet!H8 -> 0 | F9: FIT | G9: =I57-I58+C19 -> 0 | I9: a | N9: 6925 | O9: 0 | P9: 0.1 | AB9: 16250 | AC9: 1100 | AD9: 0.12
B10: Pay Cycle | F10: SIT | G10: =ROUND((((((I50-VLOOKUP(I50,J45:M53,2)))*VLOOKUP(I50,J45:M53,4))+VLOOKUP(I50,J45:M53,3))/I52)+C20,2) -> 0 | I10: h | N10: 12425 | O10: 550 | P10: 0.12 | R10: column A. This information is used to perform the needed | W10: J4 | X10: 0.01 | AB10: 49975 | AC10: 5147 | AD10: 0.22
B11: B = Bi-weekly, M = Monthly | C11: =Worksheet!H3 -> B | F11: Federal Soc Sec | G11: =ROUND(G$7*6.2/100,2) -> 0 | I11: m | N11: 29288 | O11: 2573.5 | P11: 0.22 | R11: computations. | W11: J5 | X11: 0.1 | AB11: 100625 | AC11: 16290 | AD11: 0.24
B12: Marital Status | F12: Federal Medicare | G12: =ROUND(G$7*1.45/100,2) -> 0 | I12: =IF(C14=I8,0,IF(C14=I9,1,2)) -> 0 | N12: 54613 | O12: 8145 | P12: 0.24 | W12: P | X12: 0.16 | AB12: 187350 | AC12: 37104 | AD12: 0.32
B13: STATE S = Single, M = Married | C13: =Worksheet!H5 -> S | F13: Retirement | G13: =IF(C22="Y",ROUND(G5*C25,2),0) -> 0 | I13: =I12 -> 0 | J13: =IF($C$6=$I$16,CHOOSE($I$13+1,N8,N20,N32),CHOOSE($I$13+1,AB7,AB19,AB31)) -> 0 | K13: =IF($C$6=$I$16,CHOOSE($I$13+1,N8,N20,N32),CHOOSE($I$13+1,AB7,AB19,AB31)) -> 0 | L13: =IF($C$6=$I$16,CHOOSE($I$13+1,O8,O20,O32),CHOOSE($I$13+1,AC7,AC19,AC31)) -> 0 | M13: =IF($C$6=$I$16,CHOOSE($I$13+1,P8,P20,P32),CHOOSE($I$13+1,AD7,AD19,AD31)) -> 0 | N13: 97975 | O13: 18552 | P13: 0.32 | Q13: C7 thru F8 | R13: Retirement information is entered in columns D and F as | W13: S | X13: 0.048 | AB13: 236500 | AC13: 52832 | AD13: 0.35
B14: FEDERAL J = Single, A = Married, H = HOH | C14: =Worksheet!H6 -> J | F14: DCP | G14: =C26 -> 0 | I14: =IF(C14=I9,O88,P88) -> 8600 | J14: =IF($C$6=$I$16,CHOOSE($I$13+1,N9,N21,N33),CHOOSE($I$13+1,AB8,AB20,AB32)) -> 5250 | K14: 5250 | L14: 0 | M14: 0.1 | N14: 122550 | O14: 26416 | P14: 0.35 | AB14: 583375 | AC14: 174238.25 | AD14: 0.37
B15: Gross Wages | F15: Post-Tax Deductions | G15: =SUM(C38:C45) -> 0 | I15: =IF(I19<0,0,I21) -> 0 | J15: 16250 | K15: 16250 | L15: 1100 | M15: 0.12 | N15: 295988 | O15: 87119.13 | P15: 0.37 | R15: directed in columns C and E. This identifies the amount | W15: T | X15: 0.0978 | AB15: 9999999999 | AC15: 9999999999 | AD15: 1
B16: Rate per hour or total amount | C16: =Worksheet!D12 -> 0 | F16: Pre-Tax Deductions | G16: =SUM(C29:C36) -> 0 | I16: y | J16: 49975 | K16: 49975 | L16: 5147 | M16: 0.22 | N16: 9999999999 | O16: 9999999999 | P16: 1 | R16: of wages which is not subject to taxes. | AB16: 9999999999 | AC16: 9999999999 | AD16: 1
B17: Number of hours or 1 for total above | C17: 1 | F17: Net Take Home Pay | G17: =G5-SUM(G9:G16) -> 0 | I17: =IF(C22=I16,G13,0) -> 0 | J17: 100625 | K17: =IF($C$6=$I$16,CHOOSE($I$13+1,N12,N24,N36),CHOOSE($I$13+1,AB11,AB23,AB35)) -> 100625 | L17: 16290 | M17: 0.24 | N17: 9999999999 | O17: 9999999999 | P17: 1
B18: OT Hours or 0 if amount in total above | C18: 0 | J18: 187350 | K18: 187350 | L18: 37104 | M18: 0.32 | Q18: G4 thru G8 | R18: These cells compare entries for pay cycle and marital | W18: State Percentages | AB18: Federal | AC18: Annual | AD18: Married
B19: Additional FIT | C19: =Worksheet!H11 -> 0 | F19: State Contribution | I19: =G5-I17-G16-G14-IF(C6=I16,0,I14/I20) -> -330.7692308 | J19: 236500 | K19: 236500 | L19: 52832 | M19: 0.35 | N19: Federal | O19: Annual | P19: Married | Q19: and | R19: status to constants. Based on the comparisons, different | W19: Code | X19: Percent | AA19: 185 | AB19: 0 | AC19: 0 | AD19: 0
B20: Additional SIT | C20: =Worksheet!H12 -> 0 | F20: Federal Soc Sec | G20: =ROUND(G$7*6.2/100,2) -> 0 | I20: =IF(C$11="b",26,IF(C$11="M",12,1)) -> 26 | J20: 583375 | K20: 583375 | L20: 174238.25 | M20: 0.37 | N20: 0 | O20: 0 | P20: 0 | Q20: G39 thru G45 | R20: values are placed in cell G8. This value is used as | W20: J1 | X20: 0 | AA20: 90 | AB20: 14800 | AC20: 0 | AD20: 0.1
B21: Retirement | F21: Federal Medicare | G21: =ROUND(G$7*1.45/100,2) -> 0 | I21: =(I19*I20)+C8-C9 -> -8600 | J21: 9999999999 | K21: 9999999999 | L21: 9999999999 | M21: 1 | N21: 13850 | O21: 0 | P21: 0.1 | R21: explained in the next group. | W21: J2 | X21: 0 | AB21: 36800 | AC21: 2200 | AD21: 0.12
B22: (Y or N) | C22: =IF(rRetirement="Yes","Y","N") -> Y | F22: State Portion Retirement | G22: =+ROUND(G13*VLOOKUP(C24,W20:X27,2,0),2) -> 0 | J22: 9999999999 | K22: 9999999999 | L22: 9999999999 | M22: 1 | N22: 24850 | O22: 1100 | P22: 0.12 | W22: J3 | X22: 0 | AB22: 104250 | AC22: 10294 | AD22: 0.22
B23: S = State, T = Teacher, J = Judge, P = Patrol | E23: NOTES | J23: Minimum Wages Subject | N23: 58575 | O23: 5147 | P23: 0.22 | Q23: H8 thru K16 | R23: These cells use the value in G8 to select the correct | W23: J4 | X23: 0 | AB23: 205550 | AC23: 32580 | AD23: 0.24
B24: Judges : J1 = 9%, J2 = 7%, J3 = 5%, J4 = 1%, J5 = 10% | C24: =Worksheet!D10 -> S | J24: Biweekly | K24: 435 | L24: Revised 8/24/09 | N24: 109225 | O24: 16290 | P24: 0.24 | Q24: and | R24: value from the four tables listed in L1 thru N37. | W24: J5 | X24: 0 | AB24: 379000 | AC24: 74208 | AD24: 0.32
B25: % Withheld | C25: =IF(C24="S",4.8%,IF(C24="J1",9%,IF(C24="J2",7%,IF(C24="J3",5%,IF(C24="J4",1%,IF(C24="J5",10%,IF(C24="P",16%,IF(C24="T",9.78%,"ERROR")))))))) -> 0.048 | J25: Monthly | K25: 942.5 | L25: Revised 8/24/09 | N25: 195950 | O25: 37104 | P25: 0.32 | Q25: H40 thru k45 | W25: P | X25: 1 | AB25: 477300 | AC25: 105664 | AD25: 0.35
B26: Deferred Comp $ Withheld | C26: =Worksheet!D32 -> 0 | N26: 245100 | O26: 52832 | P26: 0.35 | Q26: G9 and G44 | R26: This cell compares the pay cycle value to a standard to | W26: S | X26: 1.56 | AB26: 708550 | AC26: 186601.5 | AD26: 0.37
B27: Deductions | J27: Wage Range | N27: 360725 | O27: 93300.75 | P27: 0.37 | R27: determine the proper amount to allow for each exemption. | W27: T | X27: 1.01 | AB27: 9999999999 | AC27: 9999999999 | AD27: 1
B28: Pre-Tax | H28: 788.97 | J28: Biweekly | K28: 580 | L28: Revised 8/24/09 | N28: 9999999999 | O28: 9999999999 | P28: 1 | AB28: 9999999999 | AC28: 9999999999 | AD28: 1
B29: Health | C29: =Worksheet!D28 -> 0 | J29: Monthly | K29: 1256.66 | L29: Revised 8/24/09 | N29: 9999999999 | O29: 9999999999 | P29: 1 | Q29: G10 and G45 | R29: This cell computes taxable wages by taking total gross
B30: Dental | C30: =Worksheet!D29 -> 0 | H30: =IF(G29-K24<=0,0,G29) -> 0 | R30: less tax-sheltered retirement less the withholding amount | AB30: Federal | AC30: Annual | AD30: HOH
B31: Vision | C31: =Worksheet!D30 -> 0 | H31: =IF(G29-K28>=0,0.25*G29,H30-K24) -> -435 | I31: =IF(H30<ABS(H31),H30,H31) -> 0 | N31: Federal | O31: Annual | P31: HOH | R31: times the number of exemptions. | AB31: 0 | AC31: 0 | AD31: 0
B32: Dependent Care | C32: =Worksheet!D31 -> 0 | H32: =IF(G29-K28>=0,0.15*G29,H30-K24) -> -435 | N32: 0 | O32: 0 | P32: 0 | AB32: 12200 | AC32: 0 | AD32: 0.1
B33: Medical Reimbursment | C33: =Worksheet!D33 -> 0 | H33: =IF(G29-K28>=0,H30-K24,0.15*G29) -> 0 | I33: =MIN(H30,H33,ABS(H32)) -> 0 | N33: 10400 | O33: 0 | P33: 0.1 | Q33: G11 thru G12 | R33: These cells determine if the retirement is tax sheltered | AB33: 27900 | AC33: 1570 | AD33: 0.12
B34: Health Savings Account | C34: =Worksheet!D34 -> 0 | N34: 18250 | O34: 785 | P34: 0.12 | R34: and then determines the amount for use in cell G10 & G45. | AB34: 72050 | AC34: 6868 | AD34: 0.22
B35: Parking / Bus Pass | C35: =Worksheet!D35 -> 0 | H35: =IF(G29-K25<=0,0,G29) -> 0 | N35: 40325 | O35: 3434 | P35: 0.22 | AB35: 107550 | AC35: 14678 | AD35: 0.24
B36: Other | C36: =Worksheet!D36 -> 0 | H36: =IF(G29-K29>=0,0.25*G29,H35-K25) -> -942.5 | I36: =IF(H35<ABS(H36),H35,H36) -> 0 | N36: 58075 | O36: 7339 | P36: 0.24 | Q36: E11 | R36: Comutes total gross by multiplying the values enter in | AB36: 194300 | AC36: 35498 | AD36: 0.32
B37: Post-Tax | H37: =IF(G29-K29>=0,0.15*G29,H35-K25) -> -942.5 | N37: 101450 | O37: 17749 | P37: 0.32 | R37: column B. | AB37: 243450 | AC37: 51226 | AD37: 0.35
B38: Child Support | C38: =Worksheet!D38 -> 0 | H38: =IF(G29-K29>=0,H35-K25,0.15*G29) -> 0 | I38: =MIN(ABS(H37),H38,H35) -> 0 | N38: 126025 | O38: 25613 | P38: 0.35 | AB38: 590300 | AC38: 172623.5 | AD38: 0.37
B39: Dependent Life | C39: =Worksheet!D39 -> 0 | N39: 299450 | O39: 86311.75 | P39: 0.37 | Q39: E14 | R39: Computes federal tax withholding by using the table | AB39: 9999999999 | AC39: 9999999999 | AD39: 1
B40: AD&D | C40: =Worksheet!D40 -> 0 | N40: 9999999999 | O40: 9999999999 | P40: 1 | R40: in cells H8 thru K16 and vlookup to identify the proper | AB40: 9999999999 | AC40: 9999999999 | AD40: 1
B41: STD | C41: =Worksheet!D41 -> 0 | N41: 9999999999 | O41: 9999999999 | P41: 1 | R41: values to use in the formula.
B42: LTD | C42: =Worksheet!D42 -> 0 | W42: Protect the sheet when done.
B43: Optional Life | C43: =Worksheet!D43 -> 0 | Q43: E15 | R43: Computes state income tax withholding using cells H40 thru K45.
B44: Other | C44: =Worksheet!D44 -> 0 | I44: m | N44: State | O44: Annual | P44: Single
B45: Other | C45: =Worksheet!D45 -> 0 | G45: Revised 3/2/23 | I45: =IF((C11=I44),2,0) -> 0 | J45: =CHOOSE($I$48+1,N45,N55,N65,N75) -> 0 | K45: =CHOOSE($I$48+1,N45,N55,N65,N75) -> 0 | L45: 0 | M45: 0 | N45: 0 | O45: 0 | P45: 0 | Q45: E16 | R45: Computes social security using the standard percentage.
I46: m | J46: =CHOOSE($I$48+1,N46,N56,N66,N76) -> 3060 | K46: =CHOOSE($I$48+1,N46,N56,N66,N76) -> 3060 | L46: =CHOOSE($I$48+1,O46,O56,O66,O76) -> 0 | M46: =CHOOSE($I$48+1,P46,P56,P66,P76) -> 0.0226 | N46: 3060 | O46: 0 | P46: 0.0226
I47: =IF((C13=I46),1,0) -> 0 | J47: 5990 | K47: 5990 | L47: 66.22 | M47: 0.0322 | N47: 5990 | O47: 66.22 | P47: 0.0322 | Q47: E17 | R47: Computes retirement by multiplying the gross by the
I48: =I47 -> 0 | J48: 19470 | K48: 19470 | L48: 500.28 | M48: 0.0491 | N48: 19470 | O48: 500.28 | P48: 0.0491 | R48: percentage entered and adding the fixed amount.
I49: =O91/I52 -> 82.30769231 | J49: 28210 | K49: 28210 | L49: 929.41 | M49: 0.062 | N49: 28210 | O49: 929.41 | P49: 0.062
I50: =IF(I51<0,0,I53) -> 0 | J50: 35820 | K50: 35820 | L50: 1401.23 | M50: 0.0639 | N50: 35820 | O50: 1401.23 | P50: 0.0639 | Q50: G23 thru H31 | R50: Computes the proper amount to hold for garnishment.
I51: =G5-(I49*C5)-I17-G16-G14 -> 0 | J51: 67270 | K51: 67270 | L51: 3410.89 | M51: 0.0675 | N51: 67270 | O51: 3410.89 | P51: 0.0675 | R51: G23-H26 is for biweekly and G28-H31 is for monthly.
I52: =IF(C$11="b",26,IF(C$11="m",12,1)) -> 26 | J52: 999999999 | K52: 999999999 | L52: 999999999 | M52: 1 | N52: 999999999 | O52: 999999999 | P52: 1 | Q52: G23 G28 | R52: Compares disposable income to protected amount for the
I53: =I51*I52 -> 0 | J53: 999999999 | K53: 999999999 | L53: 999999999 | M53: 1 | N53: 999999999 | O53: 999999999 | P53: 1 | R53: pay period to see if any can be held.
N54: State | O54: Annual | P54: Married | Q54: G24 G29 | R54: Determines if 25% or amount exceeding protected amount
N55: 0 | O55: 0 | P55: 0 | R55: should be held.
I56: =C7/I20 -> 0 | N56: 7530 | O56: 0 | P56: 0.0226 | Q56: H24 H29 | R56: Selects the lessor of the above two amounts. Non head of
I57: =ROUND((((((I15-VLOOKUP(I15,J13:M22,2)))*VLOOKUP(I15,J13:M22,4))+VLOOKUP(I15,J13:M22,3))/I20),2) -> 0 | N57: 11610 | O57: 92.91 | P57: 0.0322 | R57: household amount.
I58: =IF(I57>I56,I56,I57) -> 0 | N58: 28910 | O58: 649.27 | P58: 0.0491 | Q58: G25 G30 | R58: Determines if 15% or amount exceeding protected amount
N59: 44980 | O59: 1438.31 | P59: 0.062 | R59: should be held.
N60: 55810 | O60: 2109.77 | P60: 0.0639 | Q60: G26 G31 | R60: Determines if amount exceeding protected amount or 15%
N61: 74010 | O61: 3272.75 | P61: 0.0675 | R61: should be held.
N62: 999999999 | O62: 999999999 | P62: 1 | Q62: H26 H31 | R62: Select the lessor of the above two amounts and the G23/G28
N63: 999999999 | O63: 999999999 | P63: 1 | R63: amount. Head of household amount.
R64: The G25-G26/G30-G31 comparisons are necessary as the
R65: Disposable Income approaches the break point, the 15%
R66: computaion will become lower than the difference which is
R67: based on 25%.
Q69: E33 | R69: Selects the proper 15% amount depending upon the pay cycle.
Q71: E35 | R71: Selects the proper 25% amount depending upon the pay cycle.
Q73: H9 | R73: Uses values from B7 to determine the proper federal withholding
R74: allowance amount obtained from cells N84 and N85.
Q76: H44 | R76: Uses values from B7 to determine the proper state withholding
R77: allowance amount obtained from cells N87 and N88.
N86: Withholding | O86: Allowance
O87: Maried | P87: Single/HOH
N88: Federal Annual | O88: 12900 | P88: 8600
N89: Federal Monthly
N91: State Annual | O91: 2140
N92: State Monthly

Sheet Speedtime (hidden)
A1: Pay DBA | C1: Hours | D1: Account # | F1: LS Amount | G1: Rate
A2: =Worksheet!E15 -> 1 | C2: =Worksheet!F15 -> 0 | D2: =Worksheet!B15 -> 0 | G2: =Worksheet!G15 -> 0
A3: =Worksheet!E16 -> 2 | C3: =Worksheet!F16 -> 0 | D3: =Worksheet!B16 -> 0 | G3: =Worksheet!G16 -> 0
A4: =Worksheet!E17 -> 30 | C4: =Worksheet!F17 -> 0 | D4: =Worksheet!B17 -> 0 | G4: =Worksheet!G17 -> 0
A5: =Worksheet!E18 -> 40 | C5: =Worksheet!F18 -> 0 | D5: =Worksheet!B18 -> 0 | G5: =Worksheet!G18 -> 0
A6: =Worksheet!E19 -> 240 | C6: =Worksheet!F19 -> 0 | D6: =Worksheet!B19 -> 0 | G6: =Worksheet!G19 -> 0
A7: =Worksheet!E20 -> 330 | C7: =Worksheet!F20 -> 0 | D7: =Worksheet!B20 -> 0 | G7: =Worksheet!G20 -> 0
A8: =Worksheet!E21 -> 320 | C8: =Worksheet!F21 -> Not applicable | D8: =Worksheet!B21 -> 0 | G8: =Worksheet!G21 -> 0
A9: =Worksheet!E22 -> 892 | C9: =Worksheet!F22 -> 0 | D9: =Worksheet!B22 -> 0 | G9: =Worksheet!G22 -> 0
A10: =Worksheet!E23 -> 892 | C10: =Worksheet!F23 -> 0 | D10: =Worksheet!B23 -> 0 | G10: =Worksheet!G23 -> 0
A11: =Worksheet!E24 -> 340 | C11: =Worksheet!F24 -> 0 | D11: =Worksheet!B24 -> 0 | G11: =Worksheet!G24 -> 0
A12: =Worksheet!M3 -> 0 | C12: =Worksheet!N3 -> 0 | D12: =Worksheet!J3 -> 0 | G12: =Worksheet!O3 -> 0
A13: =Worksheet!M4 -> 0 | C13: =Worksheet!N4 -> 0 | D13: =Worksheet!J4 -> 0 | G13: =Worksheet!O4 -> 0
A14: =Worksheet!M5 -> 0 | C14: =Worksheet!N5 -> 0 | D14: =Worksheet!J5 -> 0 | G14: =Worksheet!O5 -> 0
A15: =Worksheet!M6 -> 0 | C15: =Worksheet!N6 -> 0 | D15: =Worksheet!J6 -> 0 | G15: =Worksheet!O6 -> 0
A16: =Worksheet!M7 -> 0 | C16: =Worksheet!N7 -> 0 | D16: =Worksheet!J7 -> 0 | G16: =Worksheet!O7 -> 0
A17: =Worksheet!M8 -> 0 | C17: =Worksheet!N8 -> 0 | D17: =Worksheet!J8 -> 0 | G17: =Worksheet!O8 -> 0
A18: =Worksheet!M9 -> 0 | C18: =Worksheet!N9 -> 0 | D18: =Worksheet!J9 -> 0 | G18: =Worksheet!O9 -> 0
A19: =Worksheet!M10 -> 0 | C19: =Worksheet!N10 -> 0 | D19: =Worksheet!J10 -> 0 | G19: =Worksheet!O10 -> 0
A20: =Worksheet!M11 -> 0 | C20: =Worksheet!N11 -> 0 | D20: =Worksheet!J11 -> 0 | G20: =Worksheet!O11 -> 0
A21: =Worksheet!M12 -> 0 | C21: =Worksheet!N12 -> 0 | D21: =Worksheet!J12 -> 0 | G21: =Worksheet!O12 -> 0
A22: =Worksheet!M13 -> 0 | C22: =Worksheet!N13 -> 0 | D22: =Worksheet!J13 -> 0 | G22: =Worksheet!O13 -> 0
A23: =Worksheet!M14 -> 0 | C23: =Worksheet!N14 -> 0 | D23: =Worksheet!J14 -> 0 | G23: =Worksheet!O14 -> 0
A24: =Worksheet!M15 -> 0 | C24: =Worksheet!N15 -> 0 | D24: =Worksheet!J15 -> 0 | G24: =Worksheet!O15 -> 0
A25: =Worksheet!M16 -> 0 | C25: =Worksheet!N16 -> 0 | D25: =Worksheet!J16 -> 0 | G25: =Worksheet!O16 -> 0
A26: =Worksheet!M17 -> 0 | C26: =Worksheet!N17 -> 0 | D26: =Worksheet!J17 -> 0 | G26: =Worksheet!O17 -> 0
A27: =Worksheet!M18 -> 0 | C27: =Worksheet!N18 -> 0 | D27: =Worksheet!J18 -> 0 | G27: =Worksheet!O18 -> 0
A28: =Worksheet!M19 -> 0 | C28: =Worksheet!N19 -> 0 | D28: =Worksheet!J19 -> 0 | G28: =Worksheet!O19 -> 0
A29: =Worksheet!M20 -> 0 | C29: =Worksheet!N20 -> 0 | D29: =Worksheet!J20 -> 0 | G29: =Worksheet!O20 -> 0
A30: =Worksheet!M21 -> 0 | C30: =Worksheet!N21 -> 0 | D30: =Worksheet!J21 -> 0 | G30: =Worksheet!O21 -> 0
A31: =Worksheet!M22 -> 0 | C31: =Worksheet!N22 -> 0 | D31: =Worksheet!J22 -> 0 | G31: =Worksheet!O22 -> 0
A32: =Worksheet!M23 -> 0 | C32: =Worksheet!N23 -> 0 | D32: =Worksheet!J23 -> 0 | G32: =Worksheet!O23 -> 0
A33: =Worksheet!M24 -> 0 | C33: =Worksheet!N24 -> 0 | D33: =Worksheet!J24 -> 0 | G33: =Worksheet!O24 -> 0
A34: =Worksheet!M25 -> 0 | C34: =Worksheet!N25 -> 0 | D34: =Worksheet!J25 -> 0 | G34: =Worksheet!O25 -> 0
A35: =Worksheet!M26 -> 0 | C35: =Worksheet!N26 -> 0 | D35: =Worksheet!J26 -> 0 | G35: =Worksheet!O26 -> 0
A36: =Worksheet!M27 -> 0 | C36: =Worksheet!N27 -> 0 | D36: =Worksheet!J27 -> 0 | G36: =Worksheet!O27 -> 0
A37: =Worksheet!M28 -> 0 | C37: =Worksheet!N28 -> 0 | D37: =Worksheet!J28 -> 0 | G37: =Worksheet!O28 -> 0
A38: =Worksheet!M29 -> 0 | C38: =Worksheet!N29 -> 0 | D38: =Worksheet!J29 -> 0 | G38: =Worksheet!O29 -> 0
A39: =Worksheet!M30 -> 0 | C39: =Worksheet!N30 -> 0 | D39: =Worksheet!J30 -> 0 | G39: =Worksheet!O30 -> 0
A40: =Worksheet!M31 -> 0 | C40: =Worksheet!N31 -> 0 | D40: =Worksheet!J31 -> 0 | G40: =Worksheet!O31 -> 0
A41: =Worksheet!M32 -> 0 | C41: =Worksheet!N32 -> 0 | D41: =Worksheet!J32 -> 0 | G41: =Worksheet!O32 -> 0

Sheet OTO Upload (hidden)
A1: DBA # | B1: Amt | C1: Basis
A2: =Worksheet!B27 -> (DBA#) | B2: =Worksheet!D27 -> 0
A3: =Worksheet!B28 -> (DBA#) | B3: =Worksheet!D28 -> 0
A4: =Worksheet!B29 -> (DBA#) | B4: =Worksheet!D29 -> 0
A5: =Worksheet!B30 -> (DBA#) | B5: =Worksheet!D30 -> 0
A6: =Worksheet!B31 -> (DBA#) | B6: =Worksheet!D31 -> 0
A7: =Worksheet!B32 -> (DBA#) | B7: =Worksheet!D32 -> 0
A8: =Worksheet!B33 -> (DBA#) | B8: =Worksheet!D33 -> 0
A9: =Worksheet!B34 -> (DBA#) | B9: =Worksheet!D34 -> 0
A10: =Worksheet!B35 -> (DBA#) | B10: =Worksheet!D35 -> 0
A11: =Worksheet!B36 -> (DBA#) | B11: =Worksheet!D36 -> 0
B12: =Worksheet!D37 -> 0
A13: =Worksheet!B38 -> (DBA#) | B13: =Worksheet!D38 -> 0
A14: =Worksheet!B39 -> (DBA#) | B14: =Worksheet!D39 -> 0
A15: =Worksheet!B40 -> (DBA#) | B15: =Worksheet!D40 -> 0
A16: =Worksheet!B41 -> (DBA#) | B16: =Worksheet!D41 -> 0
A17: =Worksheet!B42 -> (DBA#) | B17: =Worksheet!D42 -> 0
A18: =Worksheet!B43 -> (DBA#) | B18: =Worksheet!D43 -> 0
A19: =Worksheet!B44 -> (DBA#) | B19: =Worksheet!D44 -> 0
A20: =Worksheet!B45 -> (DBA#) | B20: =Worksheet!D45 -> 0
A22: =Worksheet!B47 -> (DBA#) | B22: =Worksheet!D47 -> 0
A23: =Worksheet!B48 -> 0 | B23: =Worksheet!D48 -> 0
A24: =Worksheet!B49 -> 0 | B24: =Worksheet!D49 -> 0
A25: =Worksheet!B50 -> 0 | B25: =Worksheet!D50 -> 0
B26: =Worksheet!D51 -> 0
A27: =Worksheet!B52 -> (DBA#) | B27: =Worksheet!D52 -> 0 | C27: =Worksheet!D52 -> 0
A28: =Worksheet!B53 -> 8600 | B28: =Worksheet!D53 -> 0 | C28: =Worksheet!D53 -> 0
A29: =Worksheet!B54 -> (DBA#) | B29: =Worksheet!D54 -> 0 | C29: =Worksheet!D54 -> 0
A30: =Worksheet!B55 -> 8601 | B30: =Worksheet!D55 -> 0 | C30: =Worksheet!D55 -> 0
A31: =Worksheet!B56 -> 8747 | B31: =Worksheet!D56 -> 0 | C31: =Worksheet!D56 -> 0
A32: =Worksheet!B57 -> 8750 | B32: =Worksheet!D57 -> 0 | C32: =Worksheet!D57 -> 0
A33: =Worksheet!B58 -> 8751 | B33: =Worksheet!D58 -> 0 | C33: =Worksheet!D58 -> 0
A34: =Worksheet!B59 -> 8752 | B34: =Worksheet!D59 -> 0 | C34: =Worksheet!D59 -> 0
A35: =Worksheet!B60 -> 8753 | B35: =Worksheet!D60 -> 0 | C35: =Worksheet!D60 -> 0

Sheet Data (hidden)
A1: Screenshot help | B1: First, take a screenshot of your DBA screen in E1 - an easy way to do this is with the snipping tool. To open the snipping tool, press the start button and type in "snipping" - the snipping tool option should show up, click on it to open it. Next, click the "New" button on the snipping tool window. Drag a window around your DBA screen in the PFC - the snipping tool will show the screenshot. Press ctrl+C to copy it, or go to the Edit menu in the snipping tool and choose Copy. Finally, come back to the spreadsheet and click the Paste Picture button to insert the image into the screenshot area. | C1: LISTS >>> | D1: Sick Pay Types | E1: Vacation Pay Types | F1: Comp Used Pay Types
A2: Account help | B2: Enter any necessary account numbers into the appropriate pay types below along with rate and hours below, add any additional accounts and pay types to the right. The Overtime 1.5x pay type calculates the .5 increase into the sum; enter the normal non-overtime rate. If a pay type is not needed, leave the account/hours/rate columns blank. If the same pay type is needed for mutple accounts, enter the additional accounts to the right. | C2: <<< TEXT/VARS | D2: 40 | E2: 30 | F2: 50
A3: Add. account help | B3: Enter any additional accounts and pay types below, along with the hours and rate. Overtime 1.5x rates are calculated automatically in the total, so enter the normal rate. | D3: 41 | E3: 31 | F3: 340
A4: Main area help | B4: Fill out the requested information on this form - anything highlighted in red is required, anything in blue is a calculated or static value and does not need to be filled out, and anything in green should be filled out if appropriate. For items with a yes/no response, you can either select yes/no from the drop down menu or type in yes or no. There are [?] help buttons in the upper-left of some sections; click on them for additional information in that area. After filling out the form, take a screenshot of the DBA page in E1 and attach it to this spreadsheet using the Screenshot area in the bottom right - see that area for additional help on this. | D4: 180 | E4: 252 | F4: 52
A5: Employee DBA | B5: Enter any needed DBA codes for Retirement/Medical/Dental/Vision - Retirement calculates automatically, enter amounts for the rest. Any additional DBA codes and amounts can be added underneath vision (only the code # is needed). Note that pre-tax DBAs are entered on the top, and post-tax underneath in the Post Tax section. | D5: 251 | E5: 330 | F5: 343
A6: Employer DBA | B6: Enter DBA code for retirement and medical if necessary - the retirement amount is calculated automatically. Additional DBA codes can be entered underneath the medical one. Below the employer DBA codes enter in any earned sick or vacation time. | D6: 890 | E6: 331
A7: Revision date | B7: 12/28/2021 | E7: 882
A8: Vacation, Sick, and Comp Earned | B8: Regarding Comp Earned Accruals : The figures will need to be added here in correspondence with any comp accrual pay types. | E8: 888
A9: Sick payout max | B9: =IF(Worksheet!H51="SCATA",360,IF(Worksheet!H51="NAPE or FOP",480,IF(OR(Worksheet!H51="Rules",Worksheet!H51="Non-contract"),1440,IF(Worksheet!H51="SLEBC",400,400)))) -> 400 | E9: 894
A10: Sick payout warn | B10: =B9 -> 400 | D10: 0 | E10: 0
A11: Sick warning msg | B11: WARNING: The Sick Payout is at or exceeds the max hours; please verify this does not go over the limit: NAPE AND FOP Employees: One quarter of balance, no more than 480 hours SCATA Teachers: One quarter of balance, no more than 360 hours SLEBC Employees: One quarter of balance, no more than 400 hours Rules and other non-contract employees: One quarter of balance, no more than 1440 hours plus one quarter of hours accumlated during year of retirement
A12: Sick warning shown | B12: FALSE
A13: Email address | B13: as.stateaccountingpayroll@nebraska.gov
A14: Email subject | B14: Interim Payroll Form
A15: Email text | B15: Add any additional notes here if needed
